fUST/lending_fUST_20240314
["ID","MTS","AMOUNT","RATE_DAILY","PERIOD"]
[318691126,1710361841388,-500.0,0.0001955,2]
[318691127,1710361841397,-500.0,0.0001955,2]
[318691128,1710361841406,-500.0,0.0001955,2]
[318691129,1710361841415,-501.11588418,0.0001955,2]
[318691130,1710361841425,-543.54,0.0001955,2]
[318691131,1710361841435,-543.54,0.0001955,2]
[318691132,1710361841445,-543.54,0.0001955,2]
[318691133,1710361841455,-543.54,0.0001955,2]
[318691134,1710361841464,-543.54,0.0001955,2]
[318691135,1710361841473,-543.54,0.0001955,2]
[318691136,1710361841482,-543.54,0.0001955,2]
[318691137,1710361841491,-543.54,0.0001955,2]
[318691138,1710361841500,-543.54,0.0001955,2]
[318691139,1710361841510,-543.54,0.0001955,2]
[318691140,1710361841519,-543.54,0.0001955,2]
[318691141,1710361841528,-543.54,0.0001955,2]
[318691142,1710361841537,-543.54,0.0001955,2]
[318691143,1710361841546,-543.54,0.0001955,2]
[318691144,1710361841555,-543.54,0.0001955,2]
[318691145,1710361841564,-543.54,0.0001955,2]
[318691146,1710361841573,-543.54,0.0001955,2]
[318691147,1710361841582,-543.54,0.0001955,2]
[318691148,1710361841592,-543.54,0.0001955,2]
[318691149,1710361841601,-361.17926226,0.0001955,2]
[318691173,1710361843592,-182.48132285,0.0001955,2]
[318691175,1710361843603,-500.0,0.0001955,2]
[318691176,1710361843615,-500.0,0.0001955,2]
[318691178,1710361843626,-500.0,0.0001955,2]
[318691179,1710361843637,-386.87256414,0.0001955,2]
[318691180,1710361843649,-0.68437851,0.0001955,2]
[318691181,1710361843659,-61791.40770971,0.00019555,60]
[318691182,1710361843671,-4834.74100108,0.00019555,60]
[318691228,1710361846697,-155.99696445,0.00019554,2]
[318691230,1710361846707,-155.15049598,0.00019554,2]
[318691232,1710361846717,-155.15049598,0.00019554,2]
[318691234,1710361846726,-28058.01042129,0.00019555,60]
[318691258,1710361846973,-0.45615746,0.00019555,60]
[318691261,1710361846985,-680.46209062,0.00019555,60]
[318691263,1710361846997,-34244.46,0.00019555,60]
[318691420,1710363032733,-210.72743714,0.0001692,2]
[318691422,1710363032744,-1661.2379899,0.00016921,2]
[318691423,1710363032754,-15011.05678475,0.00016921,2]
[318691424,1710363032767,-9888.94321525,0.00016921,2]
[318691425,1710363032778,-2000.0,0.00017555,2]
[318691426,1710363032788,-183.96379566,0.00017846,2]
[318691427,1710363032798,-187.03413394,0.00017846,2]
[318691428,1710363032807,-2000.0,0.00017846,2]
[318691429,1710363032817,-300.0,0.00017945,2]
[318691430,1710363032827,-500.0,0.00017946,2]
[318691431,1710363032837,-531.5758164,0.00017946,2]
[318691432,1710363032847,-154.94148642,0.00017946,2]
[318691433,1710363032858,-500.0,0.00017946,2]
[318691434,1710363032868,-500.0,0.00017946,2]
[318691435,1710363032879,-500.0,0.00017946,2]
[318691436,1710363032889,-500.0,0.00017946,2]
[318691437,1710363032899,-500.0,0.00017946,2]
[318691438,1710363032909,-500.0,0.00017946,2]
[318691439,1710363032920,-500.0,0.00017946,2]
[318691441,1710363032929,-500.0,0.00017946,2]
[318691443,1710363032939,-500.0,0.00017946,2]
[318691445,1710363032948,-500.0,0.00017946,2]
[318691447,1710363032958,-500.0,0.00017946,2]
[318691449,1710363032967,-500.0,0.00017946,2]
[318691452,1710363032976,-500.0,0.00017946,2]
[318691454,1710363032986,-500.0,0.00017946,2]
[318691456,1710363032995,-500.0,0.00017946,2]
[318691458,1710363033004,-500.0,0.00017946,2]
[318691460,1710363033014,-500.0,0.00017946,2]
[318691461,1710363033023,-500.0,0.00017946,2]
[318691463,1710363033033,-500.0,0.00017946,2]
[318691465,1710363033042,-500.0,0.00017946,2]
[318691467,1710363033052,-500.0,0.00017946,2]
[318691469,1710363033061,-500.0,0.00017946,2]
[318691471,1710363033071,-500.0,0.00017946,2]
[318691473,1710363033080,-500.0,0.00017946,2]
[318691475,1710363033089,-272.58197356,0.00017946,2]
[318691477,1710363033098,-500.0,0.00017946,2]
[318691479,1710363033107,-500.0,0.00017946,2]
[318691481,1710363033117,-378.35861318,0.00017946,2]
[318691482,1710363033126,-500.0,0.00017946,2]
[318691484,1710363033135,-500.0,0.00017946,2]
[318691486,1710363033146,-500.0,0.00017946,2]
[318691488,1710363033155,-500.0,0.00017946,2]
[318691490,1710363033164,-500.0,0.00017946,2]
[318691492,1710363033173,-500.0,0.00017946,2]
[318691493,1710363033183,-500.0,0.00017946,2]
[318691495,1710363033192,-500.0,0.00017946,2]
[318691498,1710363033202,-500.0,0.00017946,2]
[318691500,1710363033211,-500.0,0.00017946,2]
[318691502,1710363033220,-500.0,0.00017946,2]
[318691503,1710363033229,-500.0,0.00017946,2]
[318691506,1710363033239,-500.0,0.00017946,2]
[318691508,1710363033248,-500.0,0.00017946,2]
[318691509,1710363033258,-500.0,0.00017946,2]
[318691512,1710363033268,-500.0,0.00017946,2]
[318691513,1710363033279,-500.0,0.00017946,2]
[318691516,1710363033288,-500.0,0.00017946,2]
[318691518,1710363033297,-500.0,0.00017946,2]
[318691519,1710363033307,-500.0,0.00017946,2]
[318691521,1710363033316,-500.0,0.00017946,2]
[318691523,1710363033326,-500.0,0.00017946,2]
[318691526,1710363033336,-500.0,0.00017946,2]
[318691528,1710363033346,-368.00844164,0.00017946,2]
[318691530,1710363033357,-423.61688521,0.00017946,2]
[318691532,1710363033367,-63079.67853496,0.00017946,2]
[318691654,1710363038776,-3051.71736588,0.00017946,2]
[318691675,1710363040727,-2981.68998484,0.00017946,2]
[318691676,1710363040738,-1397.7,0.00017946,2]
[318691677,1710363040750,-4102.87050631,0.00017946,2]
[318691693,1710363046908,-2000.0,0.00017846,2]
[318691694,1710363046923,-500.0,0.00017946,2]
[318691695,1710363046936,-104.17015263,0.00017946,2]
[318691696,1710363046947,-389.00491943,0.00017946,2]
[318691697,1710363046957,-90627.44463861,0.00017946,2]
[318691698,1710363047022,-5778.63374061,0.00017946,2]
[318691724,1710363772917,-210.72743714,0.00015639,2]
[318691725,1710363772939,-588.27256286,0.0001564,2]
[318691726,1710363829996,5162.74519974,0.00015484,2]
[318691727,1710363840064,-616.32126211,0.00015637,2]
[318691728,1710363840088,-212.15239579,0.00015638,2]
[318691729,1710363840112,-1081.4087181,0.00015639,2]
[318691730,1710363840134,-1556.117624,0.0001564,2]
[318691731,1710363844127,5162.74519974,0.00015484,2]
[318691732,1710363861982,5162.74519974,0.00015484,2]
[318691733,1710363881985,5162.74519974,0.00015484,2]
[318691734,1710363887251,4349.01920104,0.00015484,2]
[318691735,1710363887284,14680.76161947,0.00015484,2]
[318691736,1710363897987,5162.74519974,0.00015329,2]
[318691737,1710363900468,15957.05849742,0.00015484,2]
[318691738,1710363906512,687.12085551,0.00015484,2]
[318691739,1710363906918,155.07753877,0.00015484,2]
[318691740,1710363909213,19029.78082051,0.00015484,2]
[318691741,1710363915992,5162.74519974,0.00015329,2]
[318691742,1710363916541,10001.59180599,0.00015484,2]
[318691743,1710363922942,194.55830329,0.00015484,2]
[318691744,1710363924519,687.12085551,0.00015484,2]
[318691745,1710363931230,19029.78082051,0.00015484,2]
[318691746,1710363940514,686.57281344,0.00015484,2]
[318691747,1710363941998,5162.74519974,0.00015329,2]
[318691748,1710363947222,4422.57155523,0.00015484,2]
[318691749,1710363973000,-5162.74519974,0.00015329,2]
[318691750,1710363973030,-300.0,0.00015483,2]
[318691751,1710363973052,-11808.25480026,0.00015484,2]
[318691798,1710364231920,-210.72743714,0.00014777,2]
[318691800,1710364231930,-616.32126211,0.00014777,2]
[318691802,1710364231939,-892.154484,0.00014778,2]
[318691804,1710364231948,-1081.4087181,0.00015324,2]
[318691806,1710364231957,-2583.19471381,0.00015329,2]
[318691808,1710364231966,-2798.95446502,0.00015484,2]
[318691810,1710364231975,-1220.636849,0.00015578,2]
[318691812,1710364231984,-300.0,0.00016318,2]
[318691814,1710364231993,-11532.15513763,0.00016319,2]
[318691816,1710364232007,-13367.84486237,0.00016319,2]
[318691818,1710364232016,-341.4592322,0.00016344,2]
[318691820,1710364232025,-187.03413394,0.0001682,2]
[318691822,1710364232035,-2000.0,0.00017846,2]
[318691824,1710364232044,-3479.30178885,0.000179,2]
[318691827,1710364232056,-1112.2685894,0.000179,2]
[318691830,1710364232066,-155.12720431,0.00017946,2]
[318691832,1710364232075,-226.51672633,0.00017946,2]
[318691834,1710364232087,-273.48327367,0.00017946,2]
[318691836,1710364232097,-500.0,0.00017946,2]
[318691838,1710364232106,-403.4262497,0.00017946,2]
[318691841,1710364232115,-500.0,0.00017946,2]
[318691844,1710364232124,-299.90396286,0.00017946,2]
[318691847,1710364232133,-500.0,0.00017946,2]
[318691850,1710364232142,-500.0,0.00017946,2]
[318691853,1710364232151,-500.0,0.00017946,2]
[318691856,1710364232160,-500.0,0.00017946,2]
[318691859,1710364232169,-502.29718766,0.00017946,2]
[318691862,1710364232178,-151.0,0.00017946,2]
[318691865,1710364232187,-151.0,0.00017946,2]
[318691868,1710364232196,-151.0,0.00017946,2]
[318691871,1710364232205,-151.0,0.00017946,2]
[318691874,1710364232215,-151.0,0.00017946,2]
[318691876,1710364232224,-500.0,0.00017946,2]
[318691878,1710364232233,-500.0,0.00017946,2]
[318691880,1710364232242,-500.0,0.00017946,2]
[318691882,1710364232251,-500.0,0.00017946,2]
[318691884,1710364232260,-500.0,0.00017946,2]
[318691886,1710364232269,-500.0,0.00017946,2]
[318691888,1710364232278,-500.0,0.00017946,2]
[318691890,1710364232287,-500.0,0.00017946,2]
[318691892,1710364232297,-500.0,0.00017946,2]
[318691894,1710364232306,-500.0,0.00017946,2]
[318691896,1710364232315,-500.0,0.00017946,2]
[318691898,1710364232324,-266.5844942,0.00017946,2]
[318691900,1710364232333,-500.0,0.00017946,2]
[318691902,1710364232342,-612.84216509,0.00017946,2]
[318691904,1710364232351,-500.0,0.00017946,2]
[318691905,1710364232360,-500.0,0.00017946,2]
[318691906,1710364232369,-500.0,0.00017946,2]
[318691907,1710364232377,-500.0,0.00017946,2]
[318691908,1710364232386,-500.0,0.00017946,2]
[318691909,1710364232395,-500.0,0.00017946,2]
[318691910,1710364232404,-502.30868458,0.00017946,2]
[318691911,1710364232413,-500.0,0.00017946,2]
[318691912,1710364232421,-500.0,0.00017946,2]
[318691913,1710364232430,-500.0,0.00017946,2]
[318691914,1710364232439,-500.0,0.00017946,2]
[318691915,1710364232448,-500.0,0.00017946,2]
[318691916,1710364232457,-500.0,0.00017946,2]
[318691917,1710364232466,-500.0,0.00017946,2]
[318691918,1710364232475,-500.0,0.00017946,2]
[318691919,1710364232484,-500.0,0.00017946,2]
[318691920,1710364232493,-500.0,0.00017946,2]
[318691921,1710364232501,-500.0,0.00017946,2]
[318691922,1710364232510,-500.0,0.00017946,2]
[318691923,1710364232519,-500.0,0.00017946,2]
[318691924,1710364232528,-634.87818776,0.00017946,2]
[318691926,1710364232537,-500.0,0.00017946,2]
[318691928,1710364232547,-500.0,0.00017946,2]
[318691930,1710364232556,-500.0,0.00017946,2]
[318691933,1710364232568,-500.0,0.00017946,2]
[318691935,1710364232577,-500.0,0.00017946,2]
[318691937,1710364232587,-500.0,0.00017946,2]
[318691938,1710364232596,-500.0,0.00017946,2]
[318691940,1710364232606,-500.0,0.00017946,2]
[318691942,1710364232615,-500.0,0.00017946,2]
[318691945,1710364232625,-90826.61811603,0.00017946,2]
[318692077,1710364237869,-5941.87038555,0.00017946,2]
[318692121,1710364239933,-1482.88701596,0.00017946,2]
[318692123,1710364239947,-5265.09821296,0.00017946,2]
[318692124,1710364239960,-19071.2077434,0.00017946,2]
[318692125,1710364239972,-27615.55346836,0.00017946,2]
[318692146,1710364242964,-9327.19119748,0.00017946,2]
[318692160,1710364246091,-19029.78082051,0.00015484,2]
[318692161,1710364246101,-103718.36617949,0.00017946,2]
[318692163,1710364689103,-184.0,0.00014529,2]
[318692165,1710364758981,-1081.4087181,0.00014527,2]
[318692166,1710364759004,-616.32126211,0.00014528,2]
[318692167,1710364759028,-106.27001979,0.00014529,2]
[318692168,1710364945492,1393.882636,0.00014066,2]
[318692169,1710365097969,626.309068,0.00014079,2]
[318692170,1710365190512,795.9915189,0.00014079,2]
[318692204,1710365432016,-1045.66292348,0.00014822,2]
[318692206,1710365432025,-300.0,0.00014823,2]
[318692208,1710365432034,-15265.62274168,0.00014824,2]
[318692209,1710365432043,-24900.0,0.00014825,2]
[318692211,1710365432052,-500.0,0.00015068,2]
[318692213,1710365432061,-3301.35091291,0.00015484,2]
[318692215,1710365432070,-2733.0284625,0.00015484,2]
[318692217,1710365432079,-450.0,0.00016305,2]
[318692219,1710365432089,-153.0,0.00017482,2]
[318692221,1710365432098,-153.0,0.00017482,2]
[318692223,1710365432108,-153.0,0.00017482,2]
[318692224,1710365432117,-153.0,0.00017482,2]
[318692225,1710365432126,-153.0,0.00017482,2]
[318692226,1710365432134,-153.0,0.00017482,2]
[318692227,1710365432143,-2000.0,0.00017734,2]
[318692229,1710365432153,-386.3721122,0.00017756,2]
[318692231,1710365432162,-153.0,0.00017756,2]
[318692233,1710365432171,-295.9516792,0.00017756,2]
[318692235,1710365432183,-153.0,0.00017756,2]
[318692237,1710365432192,-153.0,0.00017756,2]
[318692239,1710365432201,-153.0,0.00017756,2]
[318692240,1710365432210,-201.085777,0.00017756,2]
[318692242,1710365432219,-153.0,0.00017756,2]
[318692244,1710365432231,-153.0,0.00017756,2]
[318692247,1710365432240,-153.0,0.00017756,2]
[318692248,1710365432249,-153.0,0.00017756,2]
[318692250,1710365432260,-201.085777,0.00017756,2]
[318692252,1710365432270,-153.0,0.00017756,2]
[318692264,1710365432372,-201.085777,0.00017756,2]
[318692267,1710365432383,-153.0,0.00017756,2]
[318692269,1710365432392,-153.0,0.00017756,2]
[318692271,1710365432401,-200.2876941,0.00017756,2]
[318692272,1710365432410,-153.0,0.00017756,2]
[318692274,1710365432419,-153.0,0.00017756,2]
[318692277,1710365432429,-153.0,0.00017756,2]
[318692278,1710365432439,-153.0,0.00017756,2]
[318692280,1710365432448,-153.0,0.00017756,2]
[318692282,1710365432457,-153.0,0.00017756,2]
[318692284,1710365432466,-153.0,0.00017756,2]
[318692286,1710365432475,-173.41396027,0.00017846,2]
[318692287,1710365432486,-93.76321621,0.00017864,2]
[318692297,1710365432573,-79.65074403,0.00017864,2]
[318692299,1710365432583,-173.41396024,0.00017882,2]
[318692301,1710365432592,-173.41396024,0.000179,2]
[318692303,1710365432601,-500.0,0.00017945,2]
[318692305,1710365432610,-500.0,0.00017945,2]
[318692307,1710365432620,-500.0,0.00017945,2]
[318692309,1710365432630,-500.0,0.00017945,2]
[318692311,1710365432639,-500.0,0.00017945,2]
[318692313,1710365432649,-500.0,0.00017945,2]
[318692315,1710365432658,-500.0,0.00017945,2]
[318692317,1710365432668,-500.0,0.00017945,2]
[318692319,1710365432677,-500.0,0.00017945,2]
[318692321,1710365432686,-500.0,0.00017945,2]
[318692323,1710365432696,-500.0,0.00017945,2]
[318692325,1710365432705,-500.0,0.00017945,2]
[318692327,1710365432714,-500.0,0.00017945,2]
[318692328,1710365432723,-500.0,0.00017945,2]
[318692331,1710365432734,-500.0,0.00017945,2]
[318692333,1710365432744,-500.0,0.00017945,2]
[318692335,1710365432754,-500.0,0.00017945,2]
[318692337,1710365432763,-500.0,0.00017945,2]
[318692339,1710365432773,-500.0,0.00017945,2]
[318692340,1710365432782,-500.0,0.00017945,2]
[318692342,1710365432792,-500.0,0.00017945,2]
[318692344,1710365432801,-500.0,0.00017945,2]
[318692346,1710365432810,-500.0,0.00017945,2]
[318692348,1710365432819,-500.0,0.00017945,2]
[318692350,1710365432828,-500.0,0.00017945,2]
[318692352,1710365432838,-500.0,0.00017945,2]
[318692354,1710365432847,-500.0,0.00017945,2]
[318692356,1710365432857,-500.0,0.00017945,2]
[318692358,1710365432866,-500.0,0.00017946,2]
[318692360,1710365432875,-500.0,0.00017946,2]
[318692363,1710365432885,-500.0,0.00017946,2]
[318692365,1710365432895,-500.0,0.00017946,2]
[318692366,1710365432905,-500.0,0.00017946,2]
[318692368,1710365432913,-500.0,0.00017946,2]
[318692370,1710365432922,-500.0,0.00017946,2]
[318692373,1710365432932,-500.0,0.00017946,2]
[318692374,1710365432941,-500.0,0.00017946,2]
[318692376,1710365432950,-500.0,0.00017946,2]
[318692378,1710365432959,-500.0,0.00017946,2]
[318692381,1710365432968,-500.0,0.00017946,2]
[318692382,1710365432977,-500.0,0.00017946,2]
[318692384,1710365432988,-500.0,0.00017946,2]
[318692387,1710365432997,-260.51919684,0.00017946,2]
[318692389,1710365433010,-239.48080316,0.00017946,2]
[318692391,1710365433021,-530.16830718,0.00017946,2]
[318692393,1710365433030,-286.48897601,0.00017946,2]
[318692395,1710365433040,-500.0,0.00017946,2]
[318692397,1710365433049,-500.0,0.00017946,2]
[318692399,1710365433059,-500.0,0.00017946,2]
[318692401,1710365433068,-220.73132595,0.00017946,2]
[318692403,1710365433077,-500.0,0.00017946,2]
[318692405,1710365433086,-500.0,0.00017946,2]
[318692407,1710365433096,-500.0,0.00017946,2]
[318692409,1710365433105,-500.0,0.00017946,2]
[318692411,1710365433114,-288.66368143,0.00017946,2]
[318692546,1710365438119,-211.33631857,0.00017946,2]
[318692548,1710365438128,-500.0,0.00017946,2]
[318692550,1710365438137,-500.0,0.00017946,2]
[318692552,1710365438147,-500.0,0.00017946,2]
[318692554,1710365438156,-500.0,0.00017946,2]
[318692556,1710365438165,-500.0,0.00017946,2]
[318692558,1710365438177,-500.0,0.00017946,2]
[318692560,1710365438186,-500.0,0.00017946,2]
[318692562,1710365438195,-500.0,0.00017946,2]
[318692564,1710365438204,-500.0,0.00017946,2]
[318692566,1710365438214,-500.0,0.00017946,2]
[318692568,1710365438224,-500.0,0.00017946,2]
[318692570,1710365438233,-500.0,0.00017946,2]
[318692572,1710365438242,-500.0,0.00017946,2]
[318692574,1710365438251,-373.89534333,0.00017946,2]
[318692576,1710365438265,-126.10465667,0.00017946,2]
[318692578,1710365438274,-535.56681423,0.00017946,2]
[318692612,1710365440050,-34.36680976,0.00017946,2]
[318692614,1710365440061,-620.900445,0.00017946,2]
[318692616,1710365440073,-337.2952297,0.00017946,2]
[318692617,1710365440084,-501.15928294,0.00017946,2]
[318692618,1710365440096,-500.0,0.00017946,2]
[318692619,1710365440107,-500.0,0.00017946,2]
[318692620,1710365440117,-361.59,0.00017946,2]
[318692621,1710365440127,-500.0,0.00017946,2]
[318692622,1710365440137,-500.0,0.00017946,2]
[318692623,1710365440147,-500.0,0.00017946,2]
[318692624,1710365440160,-500.0,0.00017946,2]
[318692625,1710365440174,-500.0,0.00017946,2]
[318692626,1710365440187,-500.0,0.00017946,2]
[318692627,1710365440198,-500.0,0.00017946,2]
[318692628,1710365440209,-500.0,0.00017946,2]
[318692629,1710365440222,-500.0,0.00017946,2]
[318692630,1710365440234,-500.0,0.00017946,2]
[318692631,1710365440245,-530.49818467,0.00017946,2]
[318692632,1710365440257,-500.0,0.00017946,2]
[318692633,1710365440268,-500.0,0.00017946,2]
[318692634,1710365440278,-500.0,0.00017946,2]
[318692635,1710365440289,-500.0,0.00017946,2]
[318692636,1710365440299,-394.78938191,0.00017946,2]
[318692637,1710365440310,-500.0,0.00017946,2]
[318692638,1710365440320,-500.0,0.00017946,2]
[318692639,1710365440329,-530.74,0.00017946,2]
[318692640,1710365440339,-501.11025041,0.00017946,2]
[318692641,1710365440350,-256191.41951273,0.00017946,2]
[318692642,1710365440362,-271.88,0.00017946,2]
[318692643,1710365440376,-1401.49993163,0.00017946,2]
[318692644,1710365440389,-16298.25177335,0.00017946,2]
[318692683,1710365443075,-377.54518258,0.00017945,2]
[318692684,1710365443089,-122.45481742,0.00017945,2]
[318692685,1710365443101,-203.30470753,0.00017946,2]
[318692686,1710365443134,-9360.93842397,0.00017946,2]
[318692765,1710365446464,-72709.98190893,0.00017946,2]
[318692766,1710365446477,-1483.24,0.00017946,2]
[318692767,1710365446492,-297.07324744,0.00017946,2]
[318692769,1710365978099,2024.28,0.000145,2]
[318692770,1710366082288,602.97729,0.0001421,2]
[318692771,1710366086642,318.146428,0.00014209,2]
[318692772,1710366156580,3238.4130591,0.00014252,2]
[318692773,1710366179164,179.81023046,0.00014249,2]
[318692774,1710366180970,155.07133281,0.00014249,2]
[318692775,1710366185381,155.07133281,0.00014249,2]
[318692776,1710366186101,-624.65442974,0.0001425,2]
[318692777,1710366186121,-644.67484635,0.0001425,2]
[318692778,1710366186142,-704.36144243,0.00014251,2]
[318692779,1710366186162,-528.93081481,0.00014251,2]
[318692780,1710366186182,-15265.62274168,0.00014251,2]
[318692781,1710366186204,-21584.75572499,0.00014252,2]
[318692782,1710366187447,2116.20898632,0.00014249,2]
[318692783,1710366209295,6393.8381176,0.00014249,2]
[318692784,1710366227360,250.0,0.00013725,2]
[318692785,1710366256769,-3040.4526345,0.00014027,2]
[318692786,1710366256789,-155.07753877,0.00014106,2]
[318692787,1710366256811,-210.72743714,0.00014106,2]
[318692788,1710366256831,-156.04927412,0.00014107,2]
[318692789,1710366256852,-1081.4087181,0.00014107,2]
[318692790,1710366256873,-191.63961373,0.00014108,2]
[318692791,1710366256900,-133.64478364,0.00014109,2]
[318692792,1710366291636,8750.0,0.00013725,2]
[318692793,1710366291667,1269.15389347,0.00013725,2]
[318692794,1710366327400,-15214.28595768,0.00014002,2]
[318692795,1710366327424,-2666.71404232,0.00014102,2]
[318692796,1710366397262,2481.7722452,0.00013699,2]
[318692797,1710366398094,-524.74757252,0.0001382,2]
[318692798,1710366398114,-524.74757252,0.0001396,2]
[318692799,1710366398134,-5162.74519974,0.00013961,2]
[318692800,1710366398155,-616.32126211,0.00013967,2]
[318692801,1710366398174,-212.15239579,0.000141,2]
[318692802,1710366398194,-479.69040256,0.00014102,2]
[318692803,1710366398215,-155.09771156,0.00014249,2]
[318692804,1710366398238,-76.83121591,0.00014252,2]
[318692805,1710366398262,-318.146428,0.00014924,2]
[318692806,1710366398282,-165.31384015,0.00014925,2]
[318692807,1710366398302,-155.07753877,0.00015,2]
[318692808,1710366398325,-155.07753877,0.00015024,2]
[318692809,1710366398347,-1001.001001,0.00015025,2]
[318692810,1710366398367,-300.0,0.00015025,2]
[318692811,1710366398388,-15053.0503206,0.00015026,2]
[318692896,1710366632590,-1081.4087181,0.00014723,2]
[318692898,1710366632600,-704.36144243,0.00014724,2]
[318692900,1710366632611,-77.80455158,0.00014725,2]
[318692905,1710366632689,-113.83506215,0.00014725,2]
[318692906,1710366632698,-210.72743714,0.00014873,2]
[318692907,1710366632706,-191.63961373,0.00014874,2]
[318692908,1710366632716,-5162.74519974,0.00014876,2]
[318692909,1710366632725,-300.0,0.00015025,2]
[318692910,1710366632734,-116009.95683633,0.00015026,2]
[318692911,1710366632748,-2489.40672711,0.00015026,2]
[318692912,1710366632762,-7134.66654598,0.00015026,2]
[318692913,1710366632773,-22047.65005248,0.00015026,2]
[318692914,1710366632785,-62038.47099728,0.00015026,2]
[318693344,1710366638239,-1077.316967,0.00015026,2]
[318693345,1710366638250,-6034.23711469,0.00015026,2]
[318693452,1710366640242,-880.68671564,0.00014876,2]
[318693453,1710366640252,-9172.69124527,0.00015026,2]
[318693454,1710366640264,-2163.43126643,0.00015026,2]
[318693455,1710366640276,-26525.14140121,0.00015026,2]
[318693456,1710366640288,-239936.45052562,0.00015026,2]
[318693457,1710366640299,-500.0,0.00015068,2]
[318693458,1710366640308,-500.0,0.00015068,2]
[318693459,1710366640318,-500.0,0.00015068,2]
[318693460,1710366640327,-343.60133658,0.00015068,2]
[318693461,1710366640336,-514.15724835,0.00015068,2]
[318693462,1710366640346,-500.0,0.00015068,2]
[318693463,1710366640355,-500.0,0.00015068,2]
[318693464,1710366640364,-500.0,0.00015068,2]
[318693465,1710366640373,-272.71,0.00015068,2]
[318693466,1710366640382,-500.0,0.00015068,2]
[318693467,1710366640391,-500.0,0.00015068,2]
[318693468,1710366640400,-508.14721297,0.00015068,2]
[318693469,1710366640409,-500.0,0.00015068,2]
[318693470,1710366640418,-500.0,0.00015068,2]
[318693471,1710366640427,-500.0,0.00015892,2]
[318693472,1710366640436,-165.31384015,0.00016055,2]
[318693473,1710366640446,-2000.0,0.00016419,2]
[318693474,1710366640455,-376.91547686,0.00016893,2]
[318693475,1710366640464,-500.0,0.00016894,2]
[318693476,1710366640473,-500.0,0.00016894,2]
[318693477,1710366640482,-500.0,0.00016894,2]
[318693478,1710366640491,-500.0,0.00016894,2]
[318693479,1710366640501,-278.17980074,0.00016894,2]
[318693480,1710366640510,-500.0,0.00016894,2]
[318693481,1710366640520,-500.0,0.00016894,2]
[318693482,1710366640530,-27755.99942233,0.00016895,2]
[318693483,1710366640540,-685.13635934,0.00017027,2]
[318693484,1710366640551,-616.32126211,0.00017184,2]
[318693485,1710366640560,-212.15239579,0.00017184,2]
[318693486,1710366640569,-165.31384015,0.00017185,2]
[318693487,1710366640578,-473.32234741,0.00017269,2]
[318693488,1710366640588,-500.0,0.00017269,2]
[318693489,1710366640597,-270.27085497,0.00017269,2]
[318693490,1710366640606,-500.0,0.00017269,2]
[318693491,1710366640616,-500.0,0.00017269,2]
[318693492,1710366640625,-500.0,0.00017269,2]
[318693493,1710366640635,-500.0,0.00017269,2]
[318693494,1710366640644,-500.0,0.00017269,2]
[318693495,1710366640653,-500.0,0.00017269,2]
[318693496,1710366640662,-500.0,0.00017269,2]
[318693498,1710366640671,-500.0,0.00017269,2]
[318693499,1710366640679,-666.71,0.00017269,2]
[318693500,1710366640688,-666.71,0.00017269,2]
[318693501,1710366640697,-530.06259705,0.00017845,2]
[318693502,1710366640706,-651.33084913,0.00017845,2]
[318693503,1710366640716,-623.25681797,0.00017879,2]
[318693504,1710366640724,-500.0,0.00017945,2]
[318693505,1710366640733,-500.0,0.00017945,2]